bitfinex/quotes_ETHUSD_20240825
["timestamp","ask_amount","ask_price","bid_price","bid_amount"]
[1724574854095,2.2838,2756.0,2755.5,2.4494]
[1724574854291,5.91227,2756.0,2755.5,2.4494]
[1724574854647,5.91227,2756.0,2755.4,3.62915]
[1724574855946,3.62865,2755.9,2755.3,6.07876]
[1724574856156,3.62871,2755.8,2755.3,3.62936]
[1724574856461,3.62865,2755.9,2755.3,3.62936]
[1724574856754,7.25732,2755.9,2755.3,3.62936]
[1724574857247,3.62865,2755.9,2755.3,3.62936]
[1724574858057,3.62865,2755.9,2755.4,3.62922]
[1724574858964,2.2838,2756.0,2755.4,3.62912]
[1724574859116,5.91225,2756.0,2755.4,3.62912]
[1724574859312,3.62858,2755.9,2755.4,3.62912]
[1724574866268,3.62858,2755.9,2755.3,3.62934]
[1724574866764,3.62858,2755.9,2755.4,3.62918]
[1724574866976,3.62858,2755.9,2755.5,2.3938]
[1724574868249,3.62858,2755.9,2755.4,3.62918]
[1724574868478,3.62858,2755.9,2755.3,6.02314]
[1724574873559,2.2838,2756.0,2755.4,3.62919]
[1724574873759,3.62837,2756.1,2755.5,6.02277]
[1724574874392,7.25677,2756.1,2755.5,6.02277]
[1724574874596,3.62837,2756.1,2755.5,6.02277]
[1724574875809,2.4012,2756.4,2755.2,6.02325]
[1724574876027,3.62892,2755.7,2755.2,6.02325]
[1724574876163,6.02999,2755.8,2755.2,6.02325]
[1724574876659,3.62879,2755.8,2755.2,6.02323]
[1724574877323,3.62879,2755.8,2755.2,2.3938]
[1724574877508,3.62897,2755.6,2755.2,2.3938]
[1724574878163,3.62897,2755.6,2755.0,3.62971]
[1724574878164,5.88257,2755.6,2755.0,6.05698]
[1724574878409,3.62947,2755.3,2754.7,4.6610843]
[1724574878713,3.62923,2755.4,2754.8,3.63002]
[1724574880411,3.62944,2755.3,2754.7,6.05745]
[1724574880576,3.62944,2755.3,2754.8,3.63001]
[1724574881187,7.2591,2755.2,2754.7,2.4273]
[1724574881396,3.62964,2755.1,2754.7,2.4273]
[1724574881601,3.62964,2755.1,2754.4,4.39211065]
[1724574881602,3.62981,2755.0,2754.5,2.4273]
[1724574881814,3.63003,2754.8,2754.5,2.4273]
[1724574882110,3.63003,2754.8,2754.2,6.05803]
[1724574882111,3.63016,2754.7,2754.2,6.05803]
[1724574882308,7.46,2755.1,2754.2,2.4273]
[1724574882465,2.4799,2754.8,2754.0,5.99209]
[1724574882817,3.63037,2754.6,2754.0,5.99209]
[1724574883326,3.63037,2754.6,2754.1,3.63093]
[1724574884710,3.63037,2754.6,2754.0,2.3611]
[1724574884913,3.63037,2754.6,2754.0,5.99217]
[1724574888651,3.63037,2754.6,2754.0,2.3611]
[1724574888807,3.63037,2754.6,2754.0,5.99214]
[1724574889420,3.63037,2754.6,2754.0,6.954466]
[1724574889592,3.63037,2754.6,2753.9,3.63118]
[1724574889918,3.6305,2754.5,2753.9,3.63118]
[1724574890720,3.6305,2754.5,2753.9,7.26232]
[1724574890927,3.63037,2754.6,2754.0,3.63099]
[1724574891998,3.63019,2754.7,2754.2,2.3611]
[1724574893024,6.10999,2754.8,2754.2,5.99189]
[1724574893208,8.078251,2755.0,2754.4,3.63052]
[1724574893536,3.0,2754.9,2754.4,3.63052]
[1724574893742,6.62989,2754.9,2754.4,3.63052]
[1724574895227,3.63007,2754.8,2754.2,5.99182]
[1724574898695,7.2602,2754.8,2754.2,5.99182]
[1724574899202,3.63007,2754.8,2754.2,5.99182]
[1724574899404,7.26018,2754.8,2754.2,5.99182]
[1724574899957,3.63007,2754.8,2754.3,3.63064]
[1724574900164,3.63007,2754.8,2754.4,2.3416]
[1724574901434,3.63016,2754.7,2754.4,2.3416]
[1724574901647,3.63007,2754.8,2754.4,2.3416]
[1724574901958,7.26018,2754.8,2754.4,2.3416]
[1724574902130,7.26019,2754.8,2754.4,2.3416]
[1724574903118,7.2602,2754.8,2754.4,2.3416]
[1724574904357,3.63007,2754.8,2754.4,2.3416]
[1724574904770,4.448421,2755.0,2754.4,2.938841]
[1724574904771,3.62983,2755.0,2754.4,2.938841]
[1724574905055,3.63006,2754.8,2754.4,2.3416]
[1724574905255,3.6302,2754.7,2754.4,2.3416]
[1724574905468,3.6302,2754.7,2754.2,2.3416]
[1724574905758,7.2602,2754.8,2754.2,2.3416]
[1724574905912,3.63016,2754.7,2754.2,2.3416]
[1724574907021,3.63016,2754.7,2754.1,7.26172]
[1724574907022,3.63059,2754.4,2754.0,2.3416]
[1724574907321,7.26022,2754.8,2754.0,2.3416]
[1724574907533,3.63007,2754.8,2754.1,3.63086]
[1724574908033,3.63018,2754.7,2754.1,3.63086]
[1724574909659,3.63042,2754.5,2754.0,2.3416]
[1724574909866,3.63058,2754.4,2754.0,2.3416]
[1724574911542,3.63058,2754.4,2753.8,5.97289]
[1724574913869,3.63069,2754.3,2753.8,2.3416]
[1724574914179,2.2647,2754.2,2753.7,3.63144]
[1724574916375,2.2647,2754.2,2753.8,3.63133]
[1724574916575,3.63042,2754.5,2753.9,2.3416]
[1724574916894,0.3993438,2754.4,2753.9,2.3416]
[1724574917742,4.0299738,2754.4,2753.9,2.3416]
[1724574919143,4.0299738,2754.4,2753.8,3.63124]
[1724574920178,3.63071,2754.3,2753.8,3.63124]
[1724574922164,3.63071,2754.3,2753.7,2.427]
[1724574922368,2.4296,2754.2,2753.7,2.427]
[1724574922582,2.4296,2754.2,2753.7,6.05839]
[1724574922751,6.06043,2754.2,2753.7,6.05839]
[1724574923555,0.40300538,2754.3,2753.7,9.68976]
[1724574923756,3.63069,2754.3,2753.7,6.05837]
[1724574924300,7.26149,2754.3,2753.7,6.05837]
[1724574924862,3.63083,2754.2,2753.7,6.05837]
[1724574925057,3.63083,2754.2,2753.7,2.427]
[1724574927201,3.63098,2754.1,2753.5,3.63163]
[1724574928257,3.63174,2753.5,2753.1,2.2654]
[1724574928908,7.26358,2753.5,2753.1,2.2654]
[1724574929109,3.63174,2753.5,2753.1,2.2654]
[1724574929361,3.63201,2753.3,2753.1,2.2654]
[1724574929660,3.63201,2753.3,2752.7,4.39434065]
[1724574929661,6.06174,2753.2,2752.6,4.92137883]
[1724574929806,3.63214,2753.2,2752.6,2.2654]
[1724574931927,3.63214,2753.2,2752.7,3.63271]
[1724574932264,11.09167,2753.6,2753.0,3.63231]
[1724574933188,6.06043,2754.2,2753.2,2.2654]
[1724574933327,3.63106,2754.1,2753.6,2.2654]
[1724574933725,11.09069,2754.3,2753.6,2.2654]
[1724574933962,12.562821,2754.3,2753.6,2.2654]
[1724574934276,2.4296,2753.9,2753.1,2.2654]
[1724574934444,2.4296,2753.9,2753.2,3.63212]
[1724574934627,3.63138,2753.8,2753.2,3.63212]
[1724574936226,3.63149,2753.7,2753.2,3.63212]
[1724574936572,3.398847,2753.7,2752.7,4.92123005]
[1724574936868,6.63165,2753.6,2752.9,3.63251]
[1724574937170,3.63182,2753.5,2752.9,3.63251]
[1724574937337,3.63187,2753.4,2752.9,3.63251]
[1724574938841,3.6324,2753.0,2752.4,3.63313]
[1724574939043,2.3023,2753.3,2752.3,2.361]
[1724574939290,3.63275,2752.8,2752.3,2.361]
[1724574939890,3.6328,2752.7,2752.3,2.361]
[1724574940056,3.6328,2752.7,2752.0,2.361]
[1724574940057,3.63298,2752.6,2752.0,2.361]
[1724574940942,2.3023,2752.8,2752.0,2.361]
[1724574941306,3.63265,2752.9,2752.2,3.63337]
[1724574941594,3.63243,2753.0,2752.3,2.361]
[1724574941773,3.63243,2753.0,2752.4,3.63308]
[1724574941945,3.63243,2753.0,2752.5,3.63304]
[1724574942456,5.93436,2753.3,2752.5,3.63304]
[1724574942457,3.63206,2753.3,2752.7,5.90947]
[1724574942786,3.63214,2753.2,2752.7,2.2767]
[1724574943343,3.63214,2753.2,2752.6,3.63289]
[1724574944649,3.995266,2753.3,2752.7,3.63277]
[1724574944849,3.63215,2753.2,2752.7,3.63277]
[1724574945289,3.63215,2753.2,2752.5,3.63293]
[1724574945476,3.63215,2753.2,2752.5,4.223893]
[1724574945650,3.63215,2753.2,2752.6,3.63284]
[1724574945852,3.63206,2753.3,2752.7,3.6327]
[1724574947167,3.63216,2753.2,2752.7,3.6327]
[1724574947470,3.63216,2753.2,2752.5,7.856873]
[1724574948215,3.63261,2752.9,2752.4,2.2767]
[1724574949090,3.63261,2752.9,2752.4,5.90988]
[1724574949288,7.2647,2753.1,2752.5,3.63303]
[1724574949801,3.63241,2753.0,2752.5,3.63303]
[1724574950930,3.63222,2753.2,2752.5,3.63293]
[1724574951074,3.63236,2753.1,2752.5,4.587218]
[1724574951471,7.46,2753.5,2752.6,2.2767]
[1724574951677,3.63116,2754.0,2753.4,3.63187]
[1724574951912,3.63116,2754.0,2753.4,3.63179]
[1724574952131,3.63116,2754.0,2753.4,7.26357]
[1724574952489,7.46,2754.1,2753.6,3.6315]
[1724574952693,7.46,2754.1,2753.8,3.63125]
[1724574954032,7.46,2754.1,2753.7,2.2767]
[1724574954323,7.46,2754.1,2753.7,5.90807]
[1724574954671,7.46,2754.1,2753.8,3.63133]
[1724574954876,3.63048,2754.5,2753.9,3.63119]
[1724574955085,4.2770498,2754.5,2753.9,3.63119]
[1724574955678,9.9322,2754.7,2754.0,3.63108]
[1724574955877,7.46,2754.7,2754.3,2.2767]
[1724574956115,7.46,2755.3,2754.8,3.63002]
[1724574956315,3.62916,2755.5,2754.9,3.62989]
[1724574956567,11.089,2755.6,2755.0,3.62975]
[1724574956768,2.940009,2755.5,2755.0,3.62975]
[1724574958084,6.569119,2755.5,2754.8,5.90663]
[1724574959974,6.569119,2755.5,2754.6,3.63023]
[1724574959975,2.940009,2755.5,2754.6,3.6302]
[1724574960493,2.940009,2755.5,2754.4,3.63044]
[1724574960494,3.62959,2755.2,2754.4,3.63044]
[1724574960663,3.62985,2755.0,2754.4,3.63044]
[1724574961565,3.62991,2754.9,2754.3,2.424]
[1724574961767,3.62991,2754.9,2754.3,6.05465]
[1724574962555,3.62991,2754.9,2754.0,5.98952]
[1724574962761,3.62991,2754.9,2754.2,3.63079]
[1724574962762,4.355869,2754.9,2754.2,3.63079]
[1724574963378,4.355869,2754.9,2754.1,3.6309]
[1724574963379,3.63019,2754.7,2754.1,3.6309]
[1724574963553,3.63006,2754.8,2754.0,5.98952]
[1724574963749,3.62989,2754.9,2754.3,3.63067]
[1724574964399,3.62989,2754.9,2754.2,3.63071]
[1724574964571,3.62987,2755.0,2754.2,3.63071]
[1724574964775,3.62991,2754.9,2754.3,3.63066]
[1724574964995,3.62991,2754.9,2754.2,3.63071]
[1724574964996,3.992897,2754.9,2754.2,3.63071]
[1724574968017,3.63003,2754.8,2754.2,3.63071]
[1724574968183,3.6304,2754.6,2753.8,3.63123]
[1724574968386,3.6304,2754.6,2754.0,7.26198]
[1724574968584,5.97597,2754.8,2754.1,3.63093]
[1724574968785,9.6061,2754.8,2754.1,3.63093]
[1724574968987,3.63019,2754.7,2754.1,3.63093]
[1724574969720,3.63031,2754.6,2754.0,3.63106]
[1724574969878,4.590938,2754.6,2754.0,3.63106]
[1724574970712,4.590938,2754.6,2753.9,3.63121]
[1724574970713,0.960628,2754.6,2754.1,3.63092]
[1724574975233,0.960628,2754.6,2753.7,3.63142]
[1724574975415,3.63066,2754.4,2753.6,2.3585]
[1724574975623,2.3459,2754.5,2754.1,3.63091]
[1724574975797,3.63025,2754.7,2754.1,3.63091]
[1724574975996,5.97615,2754.7,2754.1,3.63091]
[1724574976327,4.890932,2754.6,2753.9,7.26226]
[1724574976690,4.890932,2754.6,2753.9,3.6311]
[1724574978208,3.63047,2754.5,2753.9,3.6311]
[1724574979596,3.63065,2754.4,2753.7,7.26281]
[1724574979827,0.363065,2754.3,2753.7,7.26281]
[1724574980413,2.4284,2754.2,2753.5,3.63164]
[1724574980735,3.63116,2754.0,2753.3,5.9209]
[1724574981942,3.63116,2754.0,2753.3,3.63189]
[1724574981943,3.63121,2753.9,2753.3,3.63189]
[1724574982241,3.994326,2753.9,2753.3,3.63189]
[1724574982441,0.363116,2753.9,2753.3,3.63189]
[1724574982739,0.363116,2753.9,2753.4,3.63179]
[1724574983930,3.63144,2753.8,2753.2,3.63209]
[1724574986112,0.363116,2753.9,2753.3,7.2639]
[1724574986309,3.994336,2753.9,2753.3,3.63191]
[1724574986512,0.7625446,2753.8,2753.3,3.63191]
[1724574986902,0.7625446,2753.8,2753.3,7.26384]
[1724574987114,3.994336,2753.9,2753.3,3.63191]
[1724574987727,3.63111,2754.0,2753.4,3.63175]
[1724574987944,13.51926,2754.2,2753.5,3.63162]
[1724574988105,11.09086,2754.2,2753.7,3.63145]
[1724574988301,7.46,2754.2,2753.7,3.63139]
[1724574988501,11.09037,2754.6,2754.0,3.63097]
[1724574989613,11.09037,2754.6,2753.9,3.63113]
[1724574990659,3.63064,2754.4,2753.7,3.63142]
[1724574990953,3.63076,2754.3,2753.7,3.63142]
[1724574992818,3.63082,2754.2,2753.7,3.63142]
[1724574993151,3.63082,2754.2,2753.6,2.3489]
[1724574993415,3.63117,2754.0,2753.5,3.63173]
[1724574994113,7.26235,2754.0,2753.3,9.61275]
[1724574994308,7.26235,2754.0,2753.4,3.63184]
[1724574994309,3.63117,2754.0,2753.4,3.63184]
[1724574994617,3.63117,2754.0,2753.5,3.6317]
[1724574995456,3.63141,2753.8,2753.2,3.63205]
[1724574995627,3.63116,2754.0,2753.3,3.63199]
[1724574995837,3.63116,2754.0,2753.5,5.98063]
[1724574996915,3.63086,2754.2,2753.5,5.98063]
[1724574997121,3.63086,2754.2,2753.7,3.6314]
[1724574997843,4.739674,2754.4,2753.8,3.63133]
[1724574998046,4.739674,2754.4,2753.9,3.63121]
[1724574998929,3.63061,2754.4,2753.9,5.98083]
[1724574999152,3.63042,2754.5,2754.0,3.63106]
[1724574999355,11.09016,2754.7,2754.1,3.63091]
[1724574999537,14.72041,2754.7,2754.1,3.63091]
[1724574999739,3.63029,2754.6,2754.1,3.63091]
[1724575001052,3.63042,2754.5,2753.9,5.98083]
[1724575002229,3.63042,2754.5,2754.0,3.63106]
[1724575002540,14.72042,2754.7,2754.0,3.63106]
[1724575002742,3.6301,2754.8,2754.1,3.63087]
[1724575002942,3.6301,2754.8,2754.2,3.63074]
[1724575004367,7.26022,2754.8,2754.3,2.4111]
[1724575004839,3.62978,2755.0,2754.3,6.04176]
[1724575005026,3.63,2754.9,2754.3,6.28287]
[1724575009172,3.62978,2755.0,2754.4,3.63047]
[1724575009347,7.25967,2755.0,2754.4,3.63047]
[1724575009946,3.6299,2754.9,2754.4,3.63047]
[1724575010279,3.6299,2754.9,2754.3,6.28281]
[1724575011478,3.6299,2754.9,2754.4,3.63053]
[1724575011639,3.6299,2754.9,2754.3,6.28281]
[1724575012039,3.6299,2754.9,2754.3,9.91339]
[1724575012377,3.6299,2754.9,2754.3,6.28279]
[1724575012550,7.25988,2754.9,2754.3,6.28279]
[1724575012880,3.6299,2754.9,2754.3,6.04168]
[1724575013096,7.25988,2754.9,2754.3,6.04168]
[1724575013398,9.7349,2755.1,2753.9,1.89346688]
[1724575013399,3.63039,2754.6,2753.9,6.0422]
[1724575013768,3.63039,2754.6,2754.0,3.63101]
[1724575014088,3.63039,2754.6,2754.1,3.63094]
[1724575015371,3.63014,2754.8,2754.1,3.63084]
[1724575015677,3.63022,2754.7,2754.1,3.63084]
[1724575016230,3.63022,2754.7,2754.1,7.2617]
[1724575016436,3.63022,2754.7,2754.1,3.63084]
[1724575016677,3.63022,2754.7,2754.1,7.2617]
[1724575016878,3.63022,2754.7,2754.2,3.6308]
[1724575017698,3.63014,2754.8,2754.2,3.6308]
[1724575018390,3.63014,2754.8,2754.3,3.63068]
[1724575018916,3.63014,2754.8,2754.0,0.967321]
[1724575018917,5.90469,2755.0,2754.4,3.63048]
[1724575019139,9.53453,2755.0,2754.4,5.97348]
[1724575019298,5.90469,2755.0,2754.4,5.97348]
[1724575019891,9.53453,2755.0,2754.4,5.97348]
[1724575020107,1.699453,2754.9,2754.4,5.97348]
[1724575020313,3.62979,2755.0,2754.5,3.63039]
[1724575021615,3.62979,2755.0,2754.4,5.97348]
[1724575021810,3.62979,2755.0,2754.4,9.60395]
[1724575022324,7.25963,2755.0,2754.4,5.97347]
[1724575023346,3.62992,2754.9,2754.4,5.97347]
[1724575029353,14.7194,2755.1,2754.4,5.97347]
[1724575029557,14.7194,2755.1,2754.6,3.63021]
[1724575029558,7.46,2755.1,2754.6,3.63021]
[1724575029720,3.62965,2755.1,2754.6,3.63021]
[1724575030526,7.25936,2755.1,2754.6,3.63021]
[1724575030858,8.214066,2755.1,2754.6,3.63021]
[1724575031055,3.62977,2755.0,2754.4,9.60394]
[1724575031210,3.62977,2755.0,2754.5,3.6304]
[1724575031815,4.584356,2755.1,2754.5,3.6304]
[1724575032117,8.214076,2755.1,2754.5,3.6304]
[1724575032716,4.584356,2755.1,2754.5,3.6304]
[1724575033218,3.62965,2755.1,2754.5,3.6304]
[1724575037321,7.25936,2755.1,2754.5,3.6304]
[1724575037806,3.62965,2755.1,2754.6,3.63028]
[1724575041524,3.62965,2755.1,2754.5,3.63039]
[1724575041901,7.25935,2755.1,2754.5,3.63039]
[1724575042071,7.25935,2755.1,2754.4,5.97346]
[1724575042072,3.62977,2755.0,2754.4,5.97346]
[1724575042399,3.62977,2755.0,2754.4,9.60394]
[1724575044685,3.62977,2755.0,2754.4,5.97346]
[1724575044994,5.88479,2754.9,2754.3,1.89344511]
[1724575045177,3.63012,2754.8,2754.2,9.67358]
[1724575045382,3.63012,2754.8,2754.2,10.83133836]
[1724575045818,3.63019,2754.7,2754.0,4.39266065]
[1724575046017,3.63019,2754.7,2754.1,1.89363321]
[1724575046223,7.26043,2754.7,2754.1,3.63094]
[1724575046392,3.63029,2754.6,2754.1,3.63094]
[1724575046589,3.63029,2754.6,2754.0,4.39260065]
[1724575046837,3.63044,2754.5,2754.1,1.893642]
[1724575046985,5.88534,2754.5,2754.0,5.45693051]
[1724575047329,3.63071,2754.3,2753.9,0.76164065]
[1724575047631,3.63056,2754.4,2754.0,1.8937625]
[1724575047920,5.88534,2754.5,2753.9,3.6312]
[1724575048224,2.2549,2754.5,2754.0,3.631]
[1724575048384,5.88512,2754.7,2753.9,4.39284065]
[1724575048577,5.88512,2754.7,2754.1,2.4121]
[1724575049320,5.88512,2754.7,2754.1,6.04304]
[1724575051649,5.88512,2754.7,2754.1,9.67391]
[1724575051940,5.88512,2754.7,2754.1,6.04297]
[1724575054436,5.88512,2754.7,2754.1,9.67384]
[1724575054644,5.88512,2754.7,2754.1,6.04297]
[1724575055136,5.88512,2754.7,2754.1,6.04296]
[1724575055344,5.88512,2754.7,2754.1,9.67382]
[1724575055846,2.2549,2754.7,2754.1,3.5351211]
[1724575056002,7.46,2754.8,2754.1,3.5351211]
[1724575056195,7.46,2754.8,2754.1,2.4121]
[1724575056394,7.46,2754.8,2754.3,3.63059]
[1724575059129,9.51486,2754.9,2754.3,3.63059]
[1724575059819,3.63006,2754.8,2754.3,3.63059]
[1724575060221,3.63017,2754.7,2754.1,9.67381]
[1724575061051,3.63017,2754.7,2754.1,6.04294]
[1724575061355,3.63017,2754.7,2754.1,9.6738]
[1724575061519,3.63017,2754.7,2754.1,6.04294]
[1724575061717,3.63017,2754.7,2754.1,9.67381]
[1724575062229,3.63017,2754.7,2754.1,9.6738]
[1724575062702,3.63017,2754.7,2754.2,3.6308]
[1724575062904,9.51486,2754.9,2754.2,3.6308]
[1724575063112,3.63005,2754.8,2754.2,3.6308]
[1724575063443,9.51483,2754.9,2754.3,3.63065]
[1724575063613,3.62995,2754.9,2754.3,3.63065]
[1724575063821,3.62995,2754.9,2754.2,1.15673416]
[1724575063822,3.62995,2754.9,2754.4,5.98098]
[1724575064217,11.08966,2755.1,2754.5,3.63041]
[1724575064548,14.71939,2755.1,2754.5,3.63041]
[1724575064758,7.46,2755.1,2754.7,2.3505]
[1724575068003,3.6295,2755.2,2754.7,2.3505]
[1724575068230,7.46,2755.5,2754.9,3.62978]
[1724575068432,3.62937,2755.3,2755.0,2.3505]
[1724575068714,3.62937,2755.3,2754.8,2.3505]
[1724575071342,3.62969,2755.1,2754.6,2.3505]
[1724575071534,3.62968,2755.1,2754.4,4.24369665]
[1724575071857,3.62968,2755.1,2754.4,2.3505]
[1724575072148,3.63001,2754.9,2754.4,2.3505]
[1724575072354,3.62968,2755.1,2754.5,3.6304]
[1724575072649,3.62976,2755.0,2754.5,3.6304]
[1724575072849,3.62976,2755.0,2754.4,2.3505]
[1724575073067,3.63013,2754.8,2754.4,2.3505]
[1724575073409,3.62987,2755.0,2754.4,2.3505]
[1724575073613,3.62991,2754.9,2754.4,2.3505]
[1724575075310,3.62991,2754.9,2754.4,5.98103]
[1724575076624,7.25945,2755.1,2754.4,5.98103]
[1724575077260,3.62979,2755.0,2754.4,5.98103]
[1724575079019,3.62979,2755.0,2754.5,3.6304]
[1724575079427,3.62991,2754.9,2754.4,5.98103]
[1724575079758,0.59793,2755.0,2754.5,3.6304]
[1724575079955,3.6297,2755.1,2754.5,3.6304]
[1724575080552,3.62983,2755.0,2754.5,3.6304]
[1724575081053,3.63001,2754.9,2754.3,3.6306]
[1724575081222,5.90928,2754.9,2754.3,3.6306]
[1724575081429,3.62998,2754.9,2754.3,3.6306]
[1724575081931,3.62998,2754.9,2754.3,3.63059]
[1724575082129,3.62998,2754.9,2754.4,3.63053]
[1724575082755,9.53874,2755.1,2754.4,3.63053]
[1724575082964,7.608874,2755.1,2754.6,2.3628]
[1724575083616,3.62978,2755.0,2754.6,2.3628]
[1724575084015,7.608874,2755.1,2754.6,5.99306]
[1724575084222,5.329574,2755.1,2754.6,5.99306]
[1724575084429,13.35901,2755.3,2754.7,3.63014]
[1724575084632,14.7189,2755.3,2754.7,3.63014]
[1724575084869,11.08941,2755.3,2754.7,3.63014]
[1724575085061,14.71887,2755.3,2754.7,3.63014]
[1724575085446,3.6295,2755.2,2754.7,3.63014]
[1724575085957,3.62966,2755.1,2754.6,2.3628]
[1724575086561,3.62966,2755.1,2754.6,5.99302]
[1724575086712,11.08941,2755.3,2754.7,3.63008]
[1724575086918,3.62951,2755.2,2754.7,3.63008]
[1724575090072,3.62964,2755.1,2754.6,5.99306]
[1724575090649,7.25937,2755.1,2754.6,2.3628]
[1724575091271,3.62979,2755.0,2754.6,2.3628]
[1724575091568,3.62979,2755.0,2754.4,2.3628]
[1724575091569,3.6299,2754.9,2754.4,2.3628]
[1724575091810,0.725943,2755.0,2754.4,2.3628]
[1724575091811,3.63023,2754.7,2754.4,2.3628]
[1724575091968,3.63023,2754.7,2754.2,2.3628]
[1724575093035,3.63023,2754.7,2754.2,5.9936]
[1724575094959,3.62997,2754.9,2754.3,3.63067]
[1724575096142,3.63004,2754.8,2754.3,3.63067]
[1724575097491,3.63004,2754.8,2754.3,4.85861667]
[1724575098464,3.63004,2754.8,2754.3,4.85855667]
[1724575098665,3.6299,2754.9,2754.4,3.63054]
[1724575099188,3.6299,2754.9,2754.5,2.4029]
[1724575099711,7.25963,2755.0,2754.5,2.4029]
[1724575100359,3.6299,2754.9,2754.5,2.4029]
[1724575101111,11.08957,2755.2,2754.5,3.49209567]
[1724575101416,11.08957,2755.2,2754.6,7.26038]
[1724575101809,11.08957,2755.2,2754.7,2.4029]
[1724575102363,14.71915,2755.2,2754.7,2.4029]
[1724575103118,3.6297,2755.1,2754.7,2.4029]
[1724575103309,5.101627,2755.1,2754.7,2.4029]
[1724575106203,3.6297,2755.1,2754.7,2.4029]
[1724575109442,3.62977,2755.0,2754.7,2.4029]
[1724575119074,7.25889,2755.3,2754.7,2.4029]
[1724575119235,3.62944,2755.3,2754.8,2.375]
[1724575119676,3.62958,2755.2,2754.8,2.375]
[1724575121484,3.62944,2755.3,2754.8,3.338538]
[1724575121698,3.62951,2755.2,2754.8,3.338538]
[1724575125385,3.62951,2755.2,2754.9,2.356]
[1724575125639,7.25856,2755.4,2754.9,2.356]
[1724575127573,3.6294,2755.3,2754.9,2.356]
[1724575129586,3.6291,2755.5,2755.1,2.3001]
[1724575129734,7.25786,2755.7,2755.1,2.3001]
[1724575129920,7.46,2755.8,2755.3,3.62935]
[1724575130265,7.46,2755.8,2755.4,2.3001]
[1724575130665,3.62864,2755.9,2755.4,2.893045]
[1724575130849,3.62839,2756.1,2755.5,2.3001]
[1724575131052,3.62846,2756.0,2755.5,5.9292]
[1724575131462,3.62822,2756.2,2755.6,2.3001]
[1724575131765,3.62832,2756.1,2755.7,2.3001]
[1724575132638,3.62847,2756.0,2755.7,2.3001]
[1724575133665,3.62822,2756.2,2755.7,2.3001]
[1724575133982,4.737042,2756.2,2755.7,2.3001]
[1724575135176,3.62833,2756.1,2755.7,2.3001]
[1724575140843,8.365342,2756.2,2755.7,2.3001]
[1724575141207,3.62831,2756.1,2755.7,2.3001]
[1724575141694,4.737022,2756.2,2755.7,2.3001]
[1724575143109,4.737022,2756.2,2755.7,2.44831325]
[1724575143400,3.62716,2757.0,2756.5,2.484]
[1724575143570,9.822,2757.2,2756.5,2.484]
[1724575144305,3.62708,2757.1,2756.5,2.484]
[1724575145206,7.46,2757.2,2756.6,3.62761]
[1724575145207,3.6269,2757.2,2756.6,3.62761]
[1724575145408,3.62623,2757.7,2757.0,3.62712]
[1724575145611,3.62623,2757.7,2757.1,6.1109]
[1724575145922,3.77580153,2757.7,2757.1,6.1109]
[1724575146256,3.77580153,2757.7,2757.2,2.484]
[1724575146257,0.14957153,2757.7,2757.2,2.484]
[1724575146608,3.626,2757.9,2757.3,3.62665]
[1724575146840,3.98868,2757.8,2757.2,2.484]
[1724575147358,0.3626,2757.8,2757.2,6.11086]
[1724575147649,3.626,2757.9,2757.2,6.11086]
[1724575148013,3.62607,2757.8,2757.2,6.11086]
[1724575149316,3.62607,2757.8,2757.2,6.2594968]
[1724575151089,0.1466651,2757.9,2757.3,3.62672]
[1724575151430,3.62603,2757.9,2757.3,3.62672]
[1724575151976,3.62634,2757.6,2757.2,2.6326368]
[1724575152134,3.62629,2757.7,2757.2,2.6326368]
[1724575155665,3.62629,2757.7,2757.2,6.2594868]
[1724575155829,3.626,2757.9,2757.3,3.62665]
[1724575157550,17.28458044,2758.1,2757.4,3.62652]
[1724575157880,17.28458044,2758.1,2757.2,6.88537548]
[1724575157881,3.62609,2757.8,2757.2,6.88537548]
[1724575160239,3.62609,2757.8,2757.2,10.51214548]
[1724575160440,3.62609,2757.8,2757.3,4.67791455]
[1724575160640,7.25176,2758.0,2757.3,4.67791455]
[1724575161750,3.62595,2757.9,2757.3,4.67791455]
[1724575163182,3.62595,2757.9,2757.3,4.66801203]
[1724575163403,3.62595,2757.9,2757.4,2.4732]
[1724575163606,3.62584,2758.0,2757.4,6.09973]
[1724575163773,7.60857044,2758.1,2757.5,3.62643]
[1724575163977,11.23428044,2758.1,2757.5,7.25283]
[1724575164292,11.23428044,2758.1,2757.6,2.4732]
[1724575164479,3.77428044,2758.1,2757.6,2.4732]
[1724575166883,3.62589,2758.0,2757.6,2.4732]
[1724575167871,3.77428044,2758.1,2757.6,2.4732]
[1724575167872,3.62598,2757.9,2757.6,2.4732]
[1724575168380,3.00655577,2758.1,2757.3,2.4732]
[1724575168381,3.62635,2757.6,2757.3,2.4732]
[1724575169324,3.62662,2757.4,2756.9,2.4732]
[1724575169523,3.62695,2757.2,2756.5,2.4732]
[1724575169683,3.62695,2757.2,2756.5,6.1009]
[1724575169684,3.6271,2757.1,2756.5,6.1009]
[1724575170013,3.6271,2757.1,2756.6,3.62765]
[1724575170568,7.25422,2757.1,2756.5,2.62061726]
[1724575170764,3.6271,2757.1,2756.5,2.62061726]
[1724575171381,3.62734,2756.9,2756.5,0.14741726]
[1724575171612,2.4674,2757.2,2756.3,2.4732]
[1724575171613,3.62707,2757.1,2756.3,2.4732]
[1724575171817,3.62726,2757.0,2756.4,3.62791]